bitfinex/quotes_ETHUSD_20250505
["timestamp","ask_amount","ask_price","bid_price","bid_amount"]
[1746486708608,5.46060175,1831.3,1831.1,4.569]
[1746486708793,5.46060175,1831.3,1831.2,0.11963889]
[1746486708993,5.46060175,1831.3,1831.1,4.569]
[1746486709194,5.46060175,1831.3,1831.2,0.11963889]
[1746486709415,5.46060175,1831.3,1831.1,4.569]
[1746486709616,5.46060175,1831.3,1831.2,0.11963889]
[1746486709919,5.46060175,1831.3,1831.0,5.46129858]
[1746486710088,5.46060175,1831.3,1831.2,0.11963889]
[1746486710288,5.46060175,1831.3,1831.1,0.12002945]
[1746486710500,5.46060175,1831.3,1831.2,0.11963889]
[1746486710839,5.46060175,1831.3,1831.0,5.46129858]
[1746486710997,5.46060175,1831.3,1831.1,0.12002945]
[1746486716345,8.55203777,1831.2,1831.1,0.12002945]
[1746486716500,12.10203777,1831.2,1831.1,0.16242402]
[1746486716704,5.46243433,1830.7,1830.5,5.344]
[1746486717336,5.4620986,1830.8,1830.5,10.80692645]
[1746486717646,6.25010849,1830.9,1830.5,10.80692645]
[1746486717947,11.71217503,1830.9,1830.5,10.80692645]
[1746486718146,6.25010849,1830.9,1830.5,10.80692645]
[1746486718352,6.25010849,1830.9,1830.6,5.46264098]
[1746486718557,6.25010849,1830.9,1830.5,12.43378164]
[1746486720052,11.71219119,1830.9,1830.5,10.80677313]
[1746486720439,5.46214252,1830.8,1830.5,10.80677313]
[1746486720618,5.46214252,1830.8,1830.5,10.80697655]
[1746486721072,5.46214252,1830.8,1830.5,5.344]
[1746486721372,5.46214252,1830.8,1830.5,10.8069846]
[1746486721842,5.46214252,1830.8,1830.5,5.344]
[1746486722054,10.92449211,1830.8,1830.5,5.344]
[1746486722270,5.46229828,1830.8,1830.5,5.344]
[1746486722456,10.92465027,1830.8,1830.5,5.344]
[1746486722766,5.46229828,1830.8,1830.5,5.344]
[1746486724048,5.46229828,1830.8,1830.5,10.80694739]
[1746486725169,6.2500647,1830.9,1830.5,10.80694739]
[1746486725770,11.71213337,1830.9,1830.5,10.80694739]
[1746486725948,6.2500647,1830.9,1830.5,10.80694739]
[1746486726147,5.46219193,1830.8,1830.6,0.16592738]
[1746486726647,6.2500647,1830.9,1830.6,0.16592738]
[1746486726860,11.71212587,1830.9,1830.6,0.16592738]
[1746486727067,5.46209581,1830.8,1830.6,0.16592738]
[1746486731550,5.46239143,1830.7,1830.6,0.16592738]
[1746486731784,6.22779143,1830.7,1830.6,0.16592738]
[1746486732075,5.46305874,1830.5,1830.3,18.062]
[1746486732437,5.46305874,1830.5,1830.2,10.02888314]
[1746486732673,5.46272567,1830.6,1830.2,10.02888314]
[1746486732873,6.63179412,1830.6,1830.2,10.02870958]
[1746486733074,1.16906845,1830.6,1830.3,5.46356784]
[1746486733276,1.16906845,1830.6,1830.3,11.72503822]
[1746486733513,1.16906845,1830.6,1830.3,6.26147038]
[1746486736497,1.16906845,1830.6,1830.4,5.4632632]
[1746486738305,1.16906845,1830.6,1830.3,6.26147038]
[1746486741425,1.16906845,1830.6,1830.4,0.13944473]
[1746486749224,6.22785825,1830.7,1830.4,0.13944473]
[1746486750207,11.69050747,1830.7,1830.4,0.13944473]
[1746486750431,6.22785825,1830.7,1830.4,0.13944473]
[1746486751242,11.6904714,1830.7,1830.4,0.13944473]
[1746486751443,6.22785825,1830.7,1830.4,0.13944473]
[1746486751738,7.62716711,1830.7,1830.4,5.60269544]
[1746486751944,7.62716711,1830.7,1830.4,0.13944473]
[1746486756066,2.16470886,1830.7,1830.4,5.60266713]
[1746486756275,7.76523033,1830.8,1830.4,5.60266713]
[1746486756768,7.76523033,1830.8,1830.4,5.60260843]
[1746486756943,5.46219251,1830.8,1830.4,5.60260843]
[1746486757442,5.46219251,1830.8,1830.4,11.06571496]
[1746486759472,5.46219251,1830.8,1830.4,5.60255126]
[1746486759662,7.07405893,1830.8,1830.4,5.60255126]
[1746486761276,12.53642948,1830.8,1830.4,5.60255126]
[1746486761450,5.46246076,1830.7,1830.4,0.13944473]
[1746486762277,5.46246076,1830.7,1830.4,5.60272268]
[1746486763069,3.91490424,1830.8,1830.4,5.60254101]
[1746486763276,9.37716282,1830.8,1830.4,5.60254101]
[1746486764076,9.25493351,1830.9,1830.5,6.29619713]
[1746486764274,9.25493351,1830.9,1830.6,0.13951843]
[1746486764577,3.0,1830.9,1830.6,0.13951843]
[1746486764793,3.0,1830.9,1830.6,5.60206393]
[1746486764971,6.25425274,1831.0,1830.6,5.60206393]
[1746486765171,10.45735574,1831.0,1830.6,5.60206393]
[1746486765358,6.25425274,1831.0,1830.6,5.60204612]
[1746486765559,11.7159787,1831.0,1830.6,5.60204612]
[1746486766083,11.7160035,1831.0,1830.6,5.60204612]
[1746486766383,3.7926,1831.0,1830.7,5.46238264]
[1746486766689,9.25410399,1831.0,1830.8,0.13858062]
[1746486766853,0.86759584,1830.9,1830.6,5.46252769]
[1746486767054,9.25410399,1831.0,1830.7,0.1390495]
[1746486767289,9.25410399,1831.0,1830.6,5.46252769]
[1746486767463,9.25410399,1831.0,1830.7,0.1390495]
[1746486767662,9.20410399,1831.0,1830.6,5.46252769]
[1746486767876,9.20410399,1831.0,1830.7,0.1379366]
[1746486768068,9.20410399,1831.0,1830.6,5.46252769]
[1746486768271,9.20410914,1831.0,1830.7,0.1379366]
[1746486768454,9.20410914,1831.0,1830.7,5.46229901]
[1746486768786,9.20410914,1831.0,1830.8,0.13746772]
[1746486769800,2.30303782,1831.1,1830.8,0.13746772]
[1746486769952,7.76426496,1831.1,1830.8,0.13746772]
[1746486770148,1.09210755,1831.3,1830.8,0.13746772]
[1746486770149,7.76381506,1831.3,1830.8,0.77900791]
[1746486770470,5.46100623,1831.2,1830.8,5.59928945]
[1746486770674,5.46100623,1831.2,1830.8,11.0612016]
[1746486770934,5.46100623,1831.2,1830.8,5.59928945]
[1746486771068,5.46100623,1831.2,1830.8,11.06116518]
[1746486772456,8.55641506,1831.3,1830.8,11.06116518]
[1746486772656,8.55641506,1831.3,1830.8,12.7051517]
[1746486772891,14.0172744,1831.3,1830.8,12.7051517]
[1746486773288,8.55641506,1831.3,1830.8,12.7051517]
[1746486773957,8.55641506,1831.3,1830.8,12.70516729]
[1746486774458,5.46090653,1831.2,1830.8,12.70516729]
[1746486774669,5.46090653,1831.2,1830.9,1.27051673]
[1746486774873,5.46090653,1831.2,1831.0,0.13577138]
[1746486775272,5.46090653,1831.2,1830.8,12.56769957]
[1746486775472,5.46090653,1831.2,1830.9,0.13624015]
[1746486775730,5.46090653,1831.2,1830.8,12.56769957]
[1746486775886,5.46090653,1831.2,1831.0,0.13577138]
[1746486776207,5.46090653,1831.2,1831.1,0.13530265]
[1746486776398,5.46090653,1831.2,1830.8,10.92371305]
[1746486776596,5.46090653,1831.2,1830.9,0.13624015]
[1746486776817,5.46090653,1831.2,1830.8,10.92371305]
[1746486777035,5.46090653,1831.2,1830.9,0.13624015]
[1746486777183,5.46090653,1831.2,1830.8,10.92371305]
[1746486777386,5.46090653,1831.2,1830.9,0.13624015]
[1746486777732,5.46090653,1831.2,1830.8,10.92371305]
[1746486777882,5.46090653,1831.2,1831.0,0.13577138]
[1746486778075,6.86263869,1831.2,1830.8,10.92371305]
[1746486778388,6.86263869,1831.2,1830.9,0.13624015]
[1746486778709,6.86263869,1831.2,1830.8,10.92369911]
[1746486778888,6.86263869,1831.2,1831.0,0.13577138]
[1746486779088,6.86263869,1831.2,1830.8,10.92369911]
[1746486779295,6.86263869,1831.2,1830.9,0.13624015]
[1746486779495,6.86263869,1831.2,1830.8,5.46182173]
[1746486779707,6.86263869,1831.2,1830.9,0.13624015]
[1746486780021,6.86263869,1831.2,1830.8,5.46182173]
[1746486780310,5.46090653,1831.2,1830.9,0.13624015]
[1746486780713,5.46090653,1831.2,1830.8,10.92369847]
[1746486780926,5.46090653,1831.2,1831.0,0.13556908]
[1746486781215,5.46090653,1831.2,1831.1,0.13510035]
[1746486781378,5.46090653,1831.2,1830.9,5.46179074]
[1746486781578,5.46090653,1831.2,1831.0,0.13556908]
[1746486781780,8.55641506,1831.3,1831.0,0.13556908]
[1746486782003,10.75576578,1831.3,1831.0,0.13556908]
[1746486783623,5.46091373,1831.2,1830.8,10.92372334]
[1746486784010,5.46091373,1831.2,1830.9,0.13603785]
[1746486784210,10.75576578,1831.3,1830.9,5.46178063]
[1746486784407,16.21660896,1831.3,1830.9,5.46178063]
[1746486784587,16.21660896,1831.3,1831.0,0.13556908]
[1746486785442,10.75576578,1831.3,1831.0,0.13556908]
[1746486788621,8.556183,1831.7,1831.3,5.46043218]
[1746486788821,5.45982196,1831.6,1831.3,0.8062]
[1746486789044,5.45982196,1831.6,1831.4,0.13344161]
[1746486789239,6.86142246,1831.6,1831.4,0.13344161]
[1746486790795,5.46000546,1831.5,1831.4,0.13344161]
[1746486794700,6.86142246,1831.6,1831.4,0.13344161]
[1746486796039,12.32142781,1831.6,1831.4,0.13344161]
[1746486796561,6.86142246,1831.6,1831.4,0.13344161]
[1746486797444,5.45982196,1831.6,1831.4,0.13344161]
[1746486801541,8.55620746,1831.7,1831.4,0.13344161]
[1746486801748,14.01589556,1831.7,1831.4,0.13344161]
[1746486801912,8.55620746,1831.7,1831.4,0.13344161]
[1746486802111,14.01588034,1831.7,1831.4,0.13344161]
[1746486804071,5.45972194,1831.6,1831.4,0.13344161]
[1746486806982,6.24746608,1832.0,1831.6,5.45946475]
[1746486807128,5.45783258,1832.3,1831.9,5.45871058]
[1746486807327,5.45783258,1832.3,1832.0,5.61924444]
[1746486807957,6.24625299,1832.4,1832.0,5.61924444]
[1746486808125,5.45745299,1832.4,1832.1,0.7893]
[1746486808481,5.45745299,1832.4,1832.2,0.15567203]
[1746486808661,5.45745299,1832.4,1832.1,0.7893]
[1746486808960,5.45745299,1832.4,1832.2,0.15554568]
[1746486809663,5.45745299,1832.4,1832.3,0.15496055]
[1746486809866,8.45745299,1832.4,1832.3,0.15496055]
[1746486810030,8.45745299,1832.4,1832.1,0.7893]
[1746486810229,8.45745299,1832.4,1832.3,0.15496055]
[1746486810432,10.23863959,1832.6,1832.3,5.61254238]
[1746486810631,10.23863959,1832.6,1832.3,6.42484238]
[1746486811463,4.78181674,1832.6,1832.3,6.42484238]
[1746486812364,10.23854574,1832.6,1832.3,6.42484238]
[1746486812858,5.456729,1832.6,1832.3,6.42484238]
[1746486813056,5.456729,1832.6,1832.3,0.96726055]
[1746486815090,10.91368424,1832.6,1832.3,0.96726055]
[1746486815483,5.45703687,1832.5,1832.3,0.96726055]
[1746486815680,10.91368722,1832.6,1832.3,0.96726055]
[1746486816002,5.456729,1832.6,1832.3,0.96726055]
[1746486816747,5.45703041,1832.5,1832.3,0.96726055]
[1746486817374,5.45703041,1832.5,1832.3,0.8123]
[1746486820281,5.456729,1832.6,1832.3,0.8123]
[1746486821387,10.91444559,1832.5,1832.3,0.8123]
[1746486821782,5.45715764,1832.5,1832.3,0.8123]
[1746486824560,10.91441535,1832.5,1832.3,0.8123]
[1746486824884,5.45715764,1832.5,1832.3,0.8123]
[1746486826896,10.91442982,1832.5,1832.3,0.8123]
[1746486827056,5.45715764,1832.5,1832.3,0.8123]
[1746486838404,10.91440946,1832.5,1832.3,0.8123]
[1746486838567,5.45715764,1832.5,1832.3,0.8123]
[1746486843006,10.91443649,1832.5,1832.3,0.8123]
[1746486843310,10.91443649,1832.5,1832.2,0.7572]
[1746486844298,5.4573613,1832.4,1832.2,0.7572]
[1746486844499,5.45762156,1832.3,1832.1,4.552]
[1746486844799,5.45791944,1832.2,1831.8,0.7572]
[1746486845101,5.45940929,1831.7,1831.6,5.3062]
[1746486845309,5.45940929,1831.7,1831.5,18.052]
[1746486845489,7.76267162,1831.7,1831.4,4.549]
[1746486846405,13.99205157,1831.9,1831.4,10.0092466]
[1746486846706,13.99208842,1831.9,1831.5,5.45990079]
[1746486847006,5.45912868,1831.8,1831.5,5.45990079]
[1746486847228,5.45912868,1831.8,1831.4,11.01548314]
[1746486848104,10.91847033,1831.8,1831.4,11.01548314]
[1746486848403,5.45912868,1831.8,1831.4,11.01548314]
[1746486850414,10.91850359,1831.8,1831.4,11.01548314]
[1746486850591,5.45912868,1831.8,1831.4,11.01548314]
[1746486851218,5.45942853,1831.7,1831.4,11.01548314]
[1746486852915,5.45942853,1831.7,1831.4,4.549]
[1746486853495,5.45912868,1831.8,1831.5,5.4599077]
[1746486853696,5.45912868,1831.8,1831.5,6.2121077]
[1746486854305,5.45912868,1831.8,1831.5,0.7522]
[1746486854508,10.9184779,1831.8,1831.5,0.7522]
[1746486854906,5.45912868,1831.8,1831.5,0.7522]
[1746486855584,5.45912868,1831.8,1831.6,0.15564618]
[1746486862423,10.91849843,1831.8,1831.6,0.15564618]
[1746486863332,5.45912868,1831.8,1831.6,0.15564618]
[1746486864411,5.45940929,1831.7,1831.6,0.15564618]
[1746486865334,5.45912868,1831.8,1831.6,0.15564618]
[1746486866523,10.91847929,1831.8,1831.6,0.15564618]
[1746486866834,5.45912868,1831.8,1831.6,0.15564618]
[1746486867055,7.7621665,1831.8,1831.6,0.15564618]
[1746486867599,7.7621665,1831.8,1831.4,5.46009545]
[1746486867600,5.45955173,1831.7,1831.4,5.46009545]
[1746486867800,5.45955173,1831.7,1831.5,0.15635814]
[1746486868502,5.45970735,1831.6,1831.5,0.15635814]
[1746486868704,5.45970735,1831.6,1831.4,1.62824113]
[1746486868904,5.45955173,1831.7,1831.4,1.62824113]
[1746486869640,10.91921946,1831.7,1831.4,1.62824113]
[1746486869935,5.45955173,1831.7,1831.4,1.62824113]
[1746486871131,10.91024547,1831.7,1831.4,1.62824113]
[1746486871343,5.45056155,1831.7,1831.4,1.62824113]
[1746486871698,5.46030359,1831.4,1831.3,4.551]
[1746486871920,5.46096313,1831.2,1830.9,6.2546922]
[1746486872128,5.46096313,1831.2,1830.9,0.7931]
[1746486872521,6.28688478,1831.3,1830.9,6.2548407]
[1746486872833,11.74773954,1831.3,1830.9,7.88707697]
[1746486873032,5.46101892,1831.2,1830.9,2.42533627]
[1746486873218,5.46101892,1831.2,1830.9,1.63223627]
[1746486873599,5.46137164,1831.1,1830.8,4.551]
[1746486873796,5.4615033,1831.0,1830.8,4.551]
[1746486874000,5.4615033,1831.0,1830.7,18.8451]
[1746486874836,5.46131907,1831.1,1830.7,24.30749082]
[1746486877249,10.92274218,1831.1,1830.7,24.30749082]
[1746486877543,5.46131907,1831.1,1830.7,24.30749082]
[1746486878437,5.46163029,1831.0,1830.7,18.8451]
[1746486879032,5.46163029,1831.0,1830.7,0.7931]
[1746486879238,5.46163029,1831.0,1830.7,6.25538114]
[1746486879638,5.46131907,1831.1,1830.7,6.25538114]
[1746486880008,5.4619692,1830.9,1830.7,0.7931]
[1746486880209,5.46209307,1830.8,1830.6,4.549]
[1746486880422,5.4619692,1830.9,1830.6,4.549]
[1746486881335,5.46225412,1830.8,1830.6,4.549]
[1746486883261,5.46199755,1830.9,1830.6,4.549]
[1746486883465,8.52331829,1831.0,1830.6,11.09581598]
[1746486883466,7.76471829,1831.0,1830.6,11.09581598]
[1746486884612,13.22645022,1831.0,1830.6,11.09581598]
[1746486884948,7.76471829,1831.0,1830.6,11.09581598]
[1746486885247,7.76471829,1831.0,1830.7,5.46234063]
[1746486885539,5.46193651,1830.9,1830.6,4.549]
[1746486885749,5.46193651,1830.9,1830.6,10.01162388]
[1746486886246,7.76467347,1831.0,1830.6,10.01154436]
[1746486886447,13.22644883,1831.0,1830.6,10.01154436]
[1746486887050,7.76467347,1831.0,1830.6,10.01154436]
[1746486887816,5.4617968,1830.9,1830.6,10.01154436]
[1746486889653,5.4617968,1830.9,1830.6,4.549]
[1746486889830,10.92383725,1830.9,1830.6,4.549]
[1746486890743,5.46211881,1830.8,1830.6,4.549]
[1746486892752,5.46196049,1830.9,1830.6,4.549]
[1746486893322,10.92404397,1830.9,1830.6,4.549]
[1746486893852,5.46218188,1830.8,1830.6,4.549]
[1746486895063,5.46191052,1830.9,1830.7,0.768]
[1746486896139,5.46209307,1830.8,1830.7,0.768]
[1746486896346,5.46239143,1830.7,1830.6,4.549]
[1746486896932,5.46226438,1830.8,1830.6,4.549]
[1746486899337,5.46239143,1830.7,1830.6,4.549]
[1746486899769,5.46226438,1830.8,1830.6,4.549]
[1746486900766,5.46194175,1830.9,1830.6,4.549]
[1746486901432,10.92400564,1830.9,1830.6,4.549]
[1746486901633,5.46211308,1830.8,1830.6,4.549]
[1746486902790,10.92445646,1830.8,1830.6,4.549]
[1746486902977,5.46239143,1830.7,1830.6,4.549]
[1746486903281,5.46277876,1830.6,1830.4,0.7503]
[1746486904451,5.46239143,1830.7,1830.4,0.7503]
[1746486905185,5.46222453,1830.8,1830.4,6.2134854]
[1746486905889,5.46222453,1830.8,1830.4,11.67659982]
[1746486906190,5.46222453,1830.8,1830.4,6.21337372]
[1746486906578,5.46222453,1830.8,1830.4,11.67645513]
[1746486906765,15.70193202,1830.9,1830.5,5.46295713]
[1746486906978,10.24,1830.9,1830.6,6.21997542]
[1746486907654,15.70179657,1830.9,1830.6,6.21997542]
[1746486908275,15.70179657,1830.9,1830.6,0.7574]
[1746486908496,5.4624758,1830.7,1830.4,0.8096]
[1746486908871,5.46223749,1830.8,1830.4,6.27273003]
[1746486909757,5.46223749,1830.8,1830.4,10.82073003]
[1746486909953,5.46223749,1830.8,1830.4,16.28381835]
[1746486910699,5.46223749,1830.8,1830.4,16.28378887]
[1746486910995,16.45827104,1830.9,1830.5,5.46289418]
[1746486910996,21.92032152,1830.9,1830.5,5.46289418]
[1746486911287,23.58635745,1830.9,1830.5,5.46289418]
[1746486911468,23.58635745,1830.9,1830.6,0.8286]
[1746486911469,18.12432182,1830.9,1830.6,0.8286]
[1746486912390,12.66233593,1830.9,1830.6,0.8286]
[1746486912696,10.24,1830.9,1830.6,6.29107388]
[1746486913292,10.24,1830.9,1830.6,0.8832229]
[1746486913616,10.24,1830.9,1830.8,0.8286]
[1746486916183,10.24,1830.9,1830.8,6.29069307]
[1746486917103,10.24,1830.9,1830.8,0.8286]
[1746486918615,5.46130741,1831.1,1830.8,0.8286]
[1746486918920,5.46150448,1831.0,1830.8,0.8286]
[1746486919818,10.92323231,1831.0,1830.8,0.8286]
[1746486920812,5.46179474,1830.9,1830.8,0.8286]
[1746486921528,5.46150448,1831.0,1830.8,0.8286]
[1746486922630,5.46209307,1830.8,1830.7,4.548]
[1746486922919,5.4619209,1830.9,1830.5,10.77604733]
[1746486923094,5.4619209,1830.9,1830.6,5.46259445]
[1746486924117,5.4619209,1830.9,1830.5,10.77604733]
[1746486924414,5.4619209,1830.9,1830.5,10.83067158]
[1746486924578,5.4619209,1830.9,1830.5,12.45993432]
[1746486924774,5.4619209,1830.9,1830.5,12.40531007]
[1746486925633,8.56125322,1831.0,1830.6,5.46261126]
[1746486925789,8.46097709,1831.2,1830.7,6.24989404]
[1746486925790,5.46137456,1831.1,1830.7,6.24989404]
[1746486926134,11.5619681,1831.2,1830.8,5.46206345]
[1746486926135,6.25892576,1831.2,1830.8,5.46206345]
[1746486926313,6.25892576,1831.2,1830.8,6.63327807]
[1746486926625,5.46120298,1831.1,1830.8,6.63327807]
[1746486926831,5.46120298,1831.1,1830.7,0.7877]
[1746486926989,5.46158949,1831.0,1830.7,0.7877]
[1746486927189,5.46138977,1831.1,1830.7,6.25008202]
[1746486932031,5.46138977,1831.1,1830.7,11.71227697]
[1746486932211,5.46138977,1831.1,1830.8,5.46206182]
[1746486932399,5.46138977,1831.1,1830.7,6.24989392]
[1746486932600,5.46138977,1831.1,1830.7,7.42113521]
[1746486932934,8.56197963,1831.2,1830.8,5.46207588]
[1746486933103,14.02313511,1831.2,1830.8,5.46207588]
[1746486933435,7.76407963,1831.2,1830.8,5.46207588]
[1746486933932,18.40419963,1831.3,1830.9,6.29233886]
[1746486934232,18.40419963,1831.3,1830.9,6.29228902]
[1746486937548,16.10101624,1831.3,1830.9,7.92220955]
[1746486938053,16.10101624,1831.3,1831.0,5.4614638]
[1746486938350,16.10101624,1831.3,1830.9,7.92220955]
[1746486939009,16.10101624,1831.3,1830.9,13.3838191]
[1746486939310,16.10101624,1831.3,1830.9,7.92220955]
[1746486940225,16.10101624,1831.3,1831.0,0.79222096]
[1746486940554,10.64040173,1831.3,1831.0,6.25369678]
[1746486940730,10.24,1831.3,1831.0,6.25369678]
[1746486941653,10.24,1831.3,1831.0,6.25357162]
[1746486941852,10.24,1831.3,1831.1,6.26273275]
[1746486942448,3.0,1831.4,1831.1,6.26273275]
[1746486944157,3.41186275,1831.4,1831.1,6.26273275]
[1746486944629,8.87232816,1831.4,1831.1,0.8017]
[1746486945028,8.46046541,1831.4,1831.1,0.8017]
[1746486946261,8.4603268,1831.4,1831.1,6.26285671]
[1746486946561,8.4603268,1831.4,1831.1,0.8017]
[1746486947439,13.92087684,1831.4,1831.1,0.8017]
[1746486947651,5.46064034,1831.3,1831.1,0.8017]
[1746486948862,8.87266194,1831.4,1831.1,0.8017]
[1746486949157,10.92088629,1831.4,1831.1,0.8017]
[1746486950141,5.4606299,1831.3,1831.1,0.8017]
[1746486952071,5.4606299,1831.3,1830.9,6.28759392]
[1746486952236,8.38922225,1831.3,1830.9,0.826]
[1746486952435,5.4610425,1831.2,1830.9,5.37]
[1746486952838,5.4610425,1831.2,1830.9,10.8317777]
[1746486956677,8.3892551,1831.3,1830.9,10.8317777]
[1746486956872,5.87878827,1831.4,1831.0,5.46135386]
[1746486957176,5.46047713,1831.4,1831.0,11.72483405]
[1746486957346,5.87965043,1831.4,1831.0,11.72483405]
[1746486957855,5.87965043,1831.4,1831.0,6.26348019]
[1746486958069,5.87965043,1831.4,1831.0,8.05332987]
[1746486959145,5.46047713,1831.4,1831.0,8.05332987]
[1746486961236,0.7901,1831.8,1831.1,0.8233]
[1746486961483,5.45870686,1832.0,1831.6,6.28300191]
[1746486961689,5.45870686,1832.0,1831.6,10.82700191]
[1746486962387,5.45870686,1832.0,1831.6,16.3410758]
[1746486962589,12.54288575,1832.2,1831.9,0.8233]
[1746486962954,12.96288081,1832.2,1831.9,0.8233]
[1746486963364,4.78181674,1832.2,1831.9,6.91017614]
[1746486963569,4.78181674,1832.2,1832.0,5.45845313]
[1746486963772,4.78181674,1832.2,1831.9,6.91019124]
[1746486965755,5.45742977,1832.4,1832.0,5.45839482]
[1746486965979,5.45742977,1832.4,1832.1,0.54583948]
[1746486966174,5.45762795,1832.3,1831.9,6.91015796]
[1746486967099,5.45762795,1832.3,1831.9,6.96473952]
[1746486967301,5.45762795,1832.3,1831.9,12.42334853]
[1746486967597,5.45762795,1832.3,1832.0,4.541]
[1746486967800,5.45762795,1832.3,1832.0,9.99951363]
[1746486968092,5.45762795,1832.3,1832.1,0.99995136]
[1746486968477,5.45762795,1832.3,1832.0,4.541]
[1746486968896,5.45794817,1832.2,1832.0,4.541]
[1746486969764,5.45865829,1832.0,1831.8,4.54]
[1746486969978,5.45865829,1832.0,1831.7,5.3577]
[1746486970288,5.45865829,1832.0,1831.8,0.53577]
[1746486970488,5.45865829,1832.0,1831.7,5.3577]
[1746486970489,5.45911125,1831.8,1831.7,0.8177]
[1746486970677,2.30303782,1831.9,1831.7,4.54]
[1746486970879,7.76204806,1831.9,1831.7,4.54]
[1746486974498,7.76204806,1831.9,1831.5,6.2251115]
[1746486974791,7.76204806,1831.9,1831.6,0.62251115]
[1746486974989,7.76204806,1831.9,1831.5,10.7651115]
[1746486975692,7.76204806,1831.9,1831.5,16.22491569]
[1746486975892,6.27915174,1832.1,1831.6,5.45944159]
[1746486976189,6.27915174,1832.1,1831.7,6.25158732]
[1746486976401,11.73760184,1832.1,1831.7,6.25158732]
[1746486976704,5.45835174,1832.1,1831.7,6.25158732]
[1746486976871,10.91683402,1832.1,1831.7,6.25158732]
[1746486977210,5.45835174,1832.1,1831.8,5.45905942]
[1746486977571,5.4580393,1832.2,1831.8,5.45905942]
[1746486977767,5.4580393,1832.2,1831.9,0.7923]
[1746486978398,5.45831548,1832.1,1831.9,0.7923]
[1746486978606,5.45851528,1832.0,1831.9,0.7923]
[1746486979607,5.45841512,1832.1,1831.9,0.7923]
[1746486981102,10.91688645,1832.1,1831.9,0.7923]
[1746486981651,13.21992427,1832.1,1831.9,0.7923]
[1746486981795,7.76145294,1832.1,1831.9,0.7923]
[1746486982529,5.45851528,1832.0,1831.9,0.7923]
[1746486983129,7.76145294,1832.1,1831.9,0.7923]
[1746486984852,5.45851528,1832.0,1831.9,0.7923]
[1746486985749,5.45851528,1832.0,1831.7,5.3546]
[1746486986044,5.45892558,1831.9,1831.7,5.3546]
[1746486986457,5.45851528,1832.0,1831.7,5.3546]
[1746486988554,5.45882105,1831.9,1831.7,5.3546]
[1746486989737,5.45882105,1831.9,1831.7,4.54]
[1746486993562,5.45882105,1831.9,1831.6,0.05459141]
[1746486993766,5.4592693,1831.8,1831.5,0.7876]
[1746486994264,10.91862553,1831.8,1831.5,0.7876]
[1746486994761,5.45940979,1831.7,1831.5,0.7876]
[1746486996583,5.45932025,1831.8,1831.5,0.7876]
[1746486996948,10.91868429,1831.8,1831.5,0.7876]
[1746486997781,5.45932025,1831.8,1831.5,0.7876]
[1746487000184,5.45897299,1831.9,1831.5,7.38074475]
[1746487000549,5.45897299,1831.9,1831.5,12.84044834]
[1746487000749,5.45897299,1831.9,1831.5,7.32606109]
[1746487000950,5.45897299,1831.9,1831.5,7.38065497]
[1746487001262,10.91806576,1831.9,1831.5,7.38065497]
[1746487001786,5.45897299,1831.9,1831.5,7.38065497]
[1746487001961,5.45897299,1831.9,1831.6,0.7380655]
[1746487002291,5.45897299,1831.9,1831.7,0.816]
[1746487004600,8.45810604,1832.2,1831.8,5.45894941]
[1746487004968,8.45810604,1832.2,1831.9,0.7678]
[1746487005383,15.69776018,1832.3,1831.9,6.22644684]
[1746487005583,15.69776018,1832.3,1831.9,7.30297027]
[1746487005797,15.69776018,1832.3,1831.9,7.30295163]
[1746487006375,10.24,1832.3,1832.0,5.45835679]
[1746487007282,10.24,1832.3,1832.2,0.7827]
[1746487007584,6.27388091,1832.5,1832.2,0.7827]
[1746487009116,5.45718091,1832.5,1832.2,0.7827]
[1746487009615,7.76042743,1832.4,1832.0,11.6993244]
[1746487009915,2.30303782,1832.4,1832.1,5.45817975]
[1746487011119,2.30303782,1832.4,1832.0,7.5186068]
[1746487011303,7.76047806,1832.4,1832.0,7.5186068]
[1746487013120,7.76047806,1832.4,1832.0,7.51858978]
[1746487013319,7.76047806,1832.4,1832.1,5.45821678]
[1746487013917,7.76047806,1832.4,1832.0,7.51858978]
[1746487014126,7.76056521,1832.4,1832.0,6.24100287]
[1746487014289,8.56716521,1832.4,1832.0,0.7827]
[1746487014492,8.56716053,1832.4,1832.0,6.24111357]
[1746487014714,8.56716053,1832.4,1832.0,11.69944165]
[1746487015022,5.45770163,1832.3,1832.0,0.7827]
[1746487015324,8.56709904,1832.4,1832.0,6.24099991]
[1746487015818,2.30303782,1832.5,1832.1,5.51257803]
[1746487016021,2.30303782,1832.5,1832.2,6.2903528]
[1746487016318,7.76007908,1832.5,1832.2,6.2903528]
[1746487017123,7.76007908,1832.5,1832.2,0.8326]
[1746487019726,7.76007908,1832.5,1832.2,6.29051136]
[1746487020223,7.76007908,1832.5,1832.2,0.8326]
[1746487021542,5.45733601,1832.4,1832.1,9.99599452]
[1746487022339,5.45733601,1832.4,1832.0,7.41521761]
[1746487022548,5.45733601,1832.4,1832.1,4.538]
[1746487022736,5.45733601,1832.4,1832.1,9.99615266]
[1746487022914,7.76007908,1832.5,1832.1,9.99615266]
[1746487023239,13.21737361,1832.5,1832.1,9.99615266]
[1746487023421,5.45747358,1832.4,1832.1,4.538]
[1746487023817,7.76007908,1832.5,1832.1,9.99612029]
[1746487024022,5.45735198,1832.4,1832.1,4.538]
[1746487024635,10.9149224,1832.4,1832.1,4.538]
[1746487025034,5.45768786,1832.3,1832.1,4.538]
[1746487025238,7.76072568,1832.3,1832.1,4.538]
[1746487025435,2.30303782,1832.3,1832.1,4.538]
[1746487026446,2.30303782,1832.3,1832.0,6.29977133]
[1746487026652,2.30303782,1832.3,1832.0,10.83677133]
[1746487026941,2.30303782,1832.3,1832.0,7.08784716]
[1746487027146,2.30303782,1832.3,1832.0,11.62484716]
[1746487027313,8.59271967,1832.5,1832.1,5.45819591]
[1746487027749,8.59271967,1832.5,1832.1,10.91621872]
[1746487027927,8.59271967,1832.5,1832.1,5.45802281]
[1746487028537,8.59271967,1832.5,1832.1,7.16631974]
[1746487029049,8.59271967,1832.5,1832.1,7.92701974]
[1746487029348,8.59271967,1832.5,1832.1,13.3850511]
[1746487029647,8.59271967,1832.5,1832.1,7.92701974]
[1746487030521,5.45747428,1832.4,1832.1,2.46899693]
[1746487030718,5.45747428,1832.4,1832.1,0.7607]
[1746487032149,5.45473138,1832.4,1832.1,0.7607]
[1746487032754,5.45768708,1832.3,1832.1,0.7607]
[1746487033050,5.45768708,1832.3,1832.0,4.537]
[1746487034261,7.7607249,1832.3,1832.0,4.537]
[1746487034563,6.25493456,1832.2,1832.0,4.537]
[1746487034725,0.7969,1832.2,1832.0,4.537]
[1746487036262,6.25494283,1832.2,1831.9,0.7802]
[1746487036460,6.25494283,1832.2,1831.9,5.3172]
[1746487037570,0.7969,1832.2,1831.9,5.3172]